bitfinex/quotes_BTCUSD_20240908
["timestamp","ask_amount","ask_price","bid_price","bid_amount"]
[1725796994219,1.85575859,54679.0,54678.0,0.14162999]
[1725796994422,1.85875859,54679.0,54678.0,0.14162999]
[1725796994631,1.86375859,54679.0,54678.0,0.14162999]
[1725796995468,1.89243391,54679.0,54678.0,0.14162999]
[1725796996535,1.88743391,54679.0,54678.0,0.14162999]
[1725796996783,1.89243391,54679.0,54678.0,0.14162999]
[1725796997015,1.88943391,54679.0,54678.0,0.14162999]
[1725796997257,1.89343391,54679.0,54678.0,0.14162999]
[1725796999567,1.89279742,54679.0,54678.0,0.14162999]
[1725797001065,1.88379742,54679.0,54678.0,0.14162999]
[1725797001516,1.88979742,54679.0,54678.0,0.14162999]
[1725797007736,1.88379742,54679.0,54678.0,0.14162999]
[1725797007952,1.88479742,54679.0,54678.0,0.14162999]
[1725797008186,1.79719742,54679.0,54678.0,0.14162999]
[1725797013352,1.72409742,54679.0,54678.0,0.14162999]
[1725797014220,1.72309742,54679.0,54678.0,0.14162999]
[1725797014696,1.72309742,54679.0,54678.0,0.14362999]
[1725797014917,1.72009742,54679.0,54678.0,0.14362999]
[1725797015352,1.72009742,54679.0,54678.0,0.14462999]
[1725797025966,1.78909742,54679.0,54678.0,0.14462999]
[1725797027031,1.78909742,54679.0,54678.0,0.14362999]
[1725797027234,1.78909742,54679.0,54678.0,0.14162999]
[1725797027634,1.79109742,54679.0,54678.0,0.14162999]
[1725797028017,1.78909742,54679.0,54678.0,0.14162999]
[1725797028457,1.79009742,54679.0,54678.0,0.14162999]
[1725797028678,1.79309742,54679.0,54678.0,0.14162999]
[1725797030111,1.72409742,54679.0,54678.0,0.14162999]
[1725797031877,1.72009742,54679.0,54678.0,0.14162999]
[1725797032350,1.72109742,54679.0,54678.0,0.14162999]
[1725797033024,1.72009742,54679.0,54678.0,0.14162999]
[1725797033484,1.72109742,54679.0,54678.0,0.14162999]
[1725797034467,1.4088269,54679.0,54678.0,0.14162999]
[1725797034894,1.4078269,54679.0,54678.0,0.14162999]
[1725797035105,1.4078269,54679.0,54678.0,0.14262999]
[1725797035749,1.14684722,54679.0,54678.0,0.14262999]
[1725797035951,1.27486622,54679.0,54678.0,0.14262999]
[1725797036369,1.27486622,54679.0,54678.0,0.14462999]
[1725797036632,1.27568122,54679.0,54678.0,0.14462999]
[1725797054732,1.27568122,54679.0,54678.0,0.21632999]
[1725797054733,1.01964222,54679.0,54678.0,0.21632999]
[1725797059137,1.01964222,54679.0,54678.0,0.14462999]
[1725797068988,1.27568122,54679.0,54678.0,0.14462999]
[1725797069395,1.01964222,54679.0,54678.0,0.14462999]
[1725797069831,1.27568122,54679.0,54678.0,0.14462999]
[1725797072208,1.27568122,54679.0,54678.0,0.14262999]
[1725797072856,1.27568122,54679.0,54678.0,0.14162999]
[1725797073275,1.27568122,54679.0,54678.0,0.14362999]
[1725797073503,1.27568122,54679.0,54678.0,0.14462999]
[1725797076905,1.01964222,54679.0,54678.0,0.14462999]
[1725797077121,1.01964222,54679.0,54678.0,0.14262999]
[1725797077331,1.01964222,54679.0,54678.0,0.14162999]
[1725797077751,1.27568122,54679.0,54678.0,0.14162999]
[1725797077957,1.27568122,54679.0,54678.0,0.14262999]
[1725797078382,1.3232059,54679.0,54678.0,0.14262999]
[1725797079680,1.3232059,54679.0,54678.0,0.14462999]
[1725797079883,1.3232059,54679.0,54678.0,0.14362999]
[1725797080325,1.3272059,54679.0,54678.0,0.14162999]
[1725797080534,1.2530059,54679.0,54678.0,0.14162999]
[1725797083090,1.2816813,54679.0,54678.0,0.14162999]
[1725797086753,1.2530059,54679.0,54678.0,0.14162999]
[1725797088065,0.94880935,54679.0,54678.0,0.14162999]
[1725797088728,1.20484835,54679.0,54678.0,0.14162999]
[1725797090065,1.23352376,54679.0,54678.0,0.14162999]
[1725797090270,1.26072476,54679.0,54678.0,0.14162999]
[1725797090907,1.23204935,54679.0,54678.0,0.14162999]
[1725797094210,1.26072474,54679.0,54678.0,0.14162999]
[1725797096636,1.23204935,54679.0,54678.0,0.14162999]
[1725797098475,0.97601035,54679.0,54678.0,0.14162999]
[1725797099154,1.23204935,54679.0,54678.0,0.14162999]
[1725797102030,1.26072479,54679.0,54678.0,0.14162999]
[1725797102459,1.26072479,54679.0,54678.0,0.22932999]
[1725797102460,1.00468579,54679.0,54678.0,0.22932999]
[1725797102672,1.00468579,54679.0,54678.0,0.29952999]
[1725797102907,1.23204935,54679.0,54678.0,0.29952999]
[1725797103138,0.97601035,54679.0,54678.0,0.22932999]
[1725797105206,0.97569048,54679.0,54678.0,0.22932999]
[1725797109973,0.97569048,54679.0,54678.0,0.14162999]
[1725797113302,1.00436596,54679.0,54678.0,0.14162999]
[1725797114554,1.26040496,54679.0,54678.0,0.14162999]
[1725797116571,1.23172948,54679.0,54678.0,0.14162999]
[1725797120070,1.26040581,54679.0,54678.0,0.14162999]
[1725797122429,1.51644481,54679.0,54678.0,0.14162999]
[1725797126727,1.48776848,54679.0,54678.0,0.14162999]
[1725797128515,1.55706848,54679.0,54678.0,0.14162999]
[1725797128975,1.30102948,54679.0,54678.0,0.14162999]
[1725797130051,1.32970649,54679.0,54678.0,0.14162999]
[1725797131026,1.58574549,54679.0,54678.0,0.14162999]
[1725797136623,1.55706848,54679.0,54678.0,0.14162999]
[1725797137070,1.23172948,54679.0,54678.0,0.14162999]
[1725797137719,1.48776848,54679.0,54678.0,0.14162999]
[1725797139486,1.23172948,54679.0,54678.0,0.14162999]
[1725797140127,1.48776848,54679.0,54678.0,0.14162999]
[1725797142995,1.51644547,54679.0,54678.0,0.14162999]
[1725797161453,1.62595721,54679.0,54678.0,0.14162999]
[1725797162076,1.51644547,54679.0,54678.0,0.14162999]
[1725797162514,1.408269,54677.0,54676.0,0.0899]
[1725797162705,1.408269,54677.0,54673.0,0.073]
[1725797162706,0.384094,54674.0,54673.0,0.073]
[1725797162922,1.252283,54674.0,54673.0,0.073]
[1725797164476,1.252283,54674.0,54673.0,0.075]
[1725797165804,1.252283,54674.0,54673.0,0.1649]
[1725797166017,1.252283,54674.0,54673.0,0.1679]
[1725797168804,1.252283,54674.0,54673.0,0.1659]
[1725797169225,1.253283,54674.0,54673.0,0.1629]
[1725797169632,1.254283,54674.0,54673.0,0.1629]
[1725797175407,1.23172352,54674.0,54673.0,0.1629]
[1725797175880,0.61959752,54674.0,54673.0,0.1629]
[1725797176334,0.87566052,54674.0,54673.0,0.1629]
[1725797176772,0.61959752,54674.0,54673.0,0.1629]
[1725797176989,0.61859752,54674.0,54673.0,0.1629]
[1725797177426,0.61859752,54674.0,54673.0,0.16453]
[1725797177849,0.36353452,54674.0,54673.0,0.17253]
[1725797178057,0.36153452,54674.0,54673.0,0.16453]
[1725797178498,0.36353452,54674.0,54673.0,0.18253]
[1725797178923,0.36253452,54674.0,54673.0,0.17453]
[1725797179132,0.36353452,54674.0,54673.0,0.18553]
[1725797180013,0.000815,54679.0,54677.0,0.0701]
[1725797180255,0.000815,54679.0,54678.0,0.55582277]
[1725797180493,0.000815,54698.0,54683.0,0.002]
[1725797180716,0.000815,54698.0,54684.0,0.07375672]
[1725797180929,0.000815,54698.0,54684.0,0.07275672]
[1725797180930,0.255981,54692.0,54684.0,0.07275672]
[1725797181162,0.02731138,54698.0,54684.0,0.07275672]
[1725797181449,0.384016,54685.0,54684.0,0.0671]
[1725797181666,0.64011,54678.0,54677.0,0.007]
[1725797181923,0.896154,54678.0,54677.0,0.007]
[1725797182408,1.152198,54678.0,54677.0,0.007]
[1725797182651,1.252198,54678.0,54677.0,0.007]
[1725797183345,0.89622,54674.0,54673.0,0.00163]
[1725797183555,1.32653813,54674.0,54673.0,0.00163]
[1725797184462,1.252283,54674.0,54673.0,0.00163]
[1725797184671,1.324383,54674.0,54673.0,0.00163]
[1725797186665,1.326383,54674.0,54673.0,0.00163]
[1725797189863,1.327198,54674.0,54673.0,0.00163]
[1725797195779,1.255098,54674.0,54673.0,0.00163]
[1725797198254,1.40887498,54674.0,54673.0,0.00163]
[1725797200703,1.28377685,54674.0,54673.0,0.00163]
[1725797201175,1.255098,54674.0,54673.0,0.00163]
[1725797203664,1.28377686,54674.0,54673.0,0.00163]
[1725797206699,1.255098,54674.0,54673.0,0.00163]
[1725797207124,1.255098,54674.0,54673.0,0.07443]
[1725797207758,1.253098,54674.0,54673.0,0.07443]
[1725797208221,1.255098,54674.0,54673.0,0.16683]
[1725797208429,1.256098,54674.0,54673.0,0.16683]
[1725797208637,1.255098,54674.0,54673.0,0.16683]
[1725797209068,1.256098,54674.0,54673.0,0.16683]
[1725797209275,1.255098,54674.0,54673.0,0.16683]
[1725797209721,1.2537775,54674.0,54673.0,0.16683]
[1725797210229,1.2547775,54674.0,54673.0,0.16683]
[1725797210458,1.28345575,54674.0,54673.0,0.16683]
[1725797210692,1.28245575,54674.0,54673.0,0.16683]
[1725797214582,1.28245575,54674.0,54673.0,0.16783]
[1725797214805,1.28145575,54674.0,54673.0,0.16783]
[1725797215037,1.02539275,54674.0,54673.0,0.16783]
[1725797215230,1.02539275,54674.0,54673.0,0.16883]
[1725797216993,0.9967145,54674.0,54673.0,0.16883]
[1725797220151,1.02539184,54674.0,54673.0,0.16883]
[1725797226844,0.9967145,54674.0,54673.0,0.16883]
[1725797228827,0.7406515,54674.0,54673.0,0.16883]
[1725797230069,0.9967145,54674.0,54673.0,0.16883]
[1725797230450,1.0253916,54674.0,54673.0,0.16883]
[1725797234746,0.8976811,54674.0,54673.0,0.16883]
[1725797234954,1.0257121,54674.0,54673.0,0.16883]
[1725797236514,0.7696491,54674.0,54673.0,0.16883]
[1725797236727,0.740972,54674.0,54673.0,0.16883]
[1725797236932,0.484909,54674.0,54673.0,0.17083]
[1725797237142,0.128846,54674.0,54673.0,0.17083]
[1725797238049,0.384909,54674.0,54673.0,0.17083]
[1725797238281,0.384909,54674.0,54673.0,0.16883]
[1725797238501,0.640972,54674.0,54673.0,0.16883]
[1725797238729,0.640972,54674.0,54673.0,0.16783]
[1725797238977,0.640972,54674.0,54673.0,0.16683]
[1725797239196,0.640972,54674.0,54673.0,0.17983]
[1725797239419,0.640972,54674.0,54673.0,0.16783]
[1725797239674,0.640972,54674.0,54673.0,0.17983]
[1725797239888,0.640972,54674.0,54673.0,0.17883]
[1725797240162,0.640972,54674.0,54673.0,0.17683]
[1725797240349,0.640972,54674.0,54673.0,0.18683]
[1725797240571,0.384909,54674.0,54673.0,0.18683]
[1725797242030,0.384909,54674.0,54673.0,0.16683]
[1725797242454,0.384909,54674.0,54673.0,0.18883]
[1725797250026,0.384909,54674.0,54673.0,0.19083]
[1725797250887,0.384909,54674.0,54673.0,0.18883]
[1725797256803,0.38260668,54674.0,54673.0,0.18883]
[1725797260926,0.256056,54676.0,54674.0,0.1575]
[1725797260927,0.128029,54675.0,54674.0,0.1575]
[1725797261104,0.128029,54675.0,54674.0,0.16115767]
[1725797261727,0.128029,54675.0,54674.0,0.16315767]
[1725797262177,0.128029,54675.0,54674.0,0.17315767]
[1725797262420,0.128029,54675.0,54674.0,0.17115767]
[1725797262594,0.128029,54675.0,54674.0,0.1775]
[1725797264021,0.128029,54675.0,54674.0,0.1795]
[1725797265456,0.256056,54676.0,54674.0,0.1795]
[1725797265457,0.128027,54676.0,54674.0,0.1795]
[1725797266155,0.128027,54676.0,54675.0,0.002]
[1725797267059,0.128027,54676.0,54675.0,0.1595]
[1725797267916,0.28267475,54678.0,54676.0,0.002]
[1725797267917,0.02662775,54678.0,54676.0,0.002]
[1725797268134,0.128022,54678.0,54677.0,0.1578]
[1725797269059,0.128022,54678.0,54677.0,0.1558]
[1725797269267,0.128022,54678.0,54677.0,0.1578]
[1725797269496,0.12802,54679.0,54677.0,0.1618]
[1725797269969,0.12802,54679.0,54677.0,0.1688]
[1725797270411,0.128022,54678.0,54677.0,0.1688]
[1725797271328,0.128022,54678.0,54677.0,0.1628]
[1725797271553,0.128022,54678.0,54677.0,0.1678]
[1725797271774,0.128022,54678.0,54677.0,0.1608]
[1725797272016,0.128022,54678.0,54677.0,0.1618]
[1725797272234,0.128022,54678.0,54677.0,0.1678]
[1725797272678,0.128022,54678.0,54677.0,0.1618]
[1725797272877,0.128022,54678.0,54677.0,0.1688]
[1725797274194,0.128022,54678.0,54677.0,0.1708]
[1725797274855,0.02677306,54680.0,54677.0,0.1688]
[1725797275103,0.128022,54678.0,54677.0,0.1688]
[1725797275518,0.12802,54679.0,54677.0,0.1688]
[1725797275959,0.12802,54679.0,54677.0,0.1618]
[1725797276346,0.12802,54679.0,54677.0,0.1658]
[1725797277016,0.128022,54678.0,54677.0,0.1658]
[1725797277690,0.128022,54678.0,54677.0,0.1618]
[1725797278109,0.128022,54678.0,54677.0,0.1678]
[1725797278312,0.128022,54678.0,54677.0,0.1618]
[1725797278525,0.128022,54678.0,54677.0,0.1558]
[1725797278730,0.128022,54678.0,54677.0,0.1608]
[1725797278963,0.128022,54678.0,54677.0,0.1628]
[1725797279392,0.128022,54678.0,54677.0,0.1688]
[1725797279623,0.128019,54679.0,54677.0,0.1688]
[1725797280936,0.256038,54680.0,54677.0,0.1688]
[1725797280937,0.128022,54678.0,54677.0,0.1688]
[1725797281150,0.128022,54678.0,54677.0,0.1618]
[1725797281852,0.128022,54678.0,54677.0,0.1668]
[1725797282065,0.384066,54678.0,54677.0,0.1608]
[1725797282318,0.128022,54678.0,54677.0,0.1558]
[1725797282523,0.128022,54678.0,54677.0,0.1688]
[1725797283382,0.384066,54678.0,54677.0,0.1688]
[1725797288366,0.384066,54678.0,54677.0,0.17043]
[1725797290753,0.384066,54678.0,54677.0,0.10333]
[1725797293626,0.64011,54678.0,54677.0,0.10333]
[1725797303272,0.63844729,54678.0,54677.0,0.09733]
[1725797303490,0.63844729,54678.0,54677.0,0.09033]
[1725797303734,0.63844729,54678.0,54677.0,0.10433]
[1725797311189,0.512088,54678.0,54677.0,0.10433]
[1725797311399,0.64011,54678.0,54677.0,0.10433]
[1725797312534,0.384066,54678.0,54677.0,0.10433]
[1725797313622,0.384066,54678.0,54677.0,0.09733]
[1725797313830,0.384066,54678.0,54677.0,0.09933]
[1725797314272,0.384066,54678.0,54677.0,0.10933]
[1725797314486,0.384066,54678.0,54677.0,0.10033]
[1725797314692,0.384066,54678.0,54677.0,0.11133]
[1725797324607,0.384881,54678.0,54677.0,0.11133]
[1725797328998,0.128837,54678.0,54677.0,0.11133]
[1725797330114,0.128837,54678.0,54677.0,0.09033]
[1725797330321,0.128837,54678.0,54677.0,0.10133]
[1725797330532,0.128837,54678.0,54677.0,0.11133]
[1725797330713,0.128837,54678.0,54677.0,0.09033]
[1725797331008,0.128837,54678.0,54677.0,0.10333]
[1725797331215,0.128837,54678.0,54677.0,0.11633]
[1725797332493,0.128837,54678.0,54677.0,0.10333]
[1725797332628,0.128837,54678.0,54677.0,0.11633]
[1725797333050,0.128837,54678.0,54677.0,0.10333]
[1725797333656,0.128837,54678.0,54677.0,0.11633]
[1725797346473,0.01561686,54682.0,54677.0,0.11633]
[1725797346693,0.02867275,54683.0,54677.0,0.11633]
[1725797346924,0.05487592,54688.0,54677.0,0.11633]
[1725797347342,0.05487592,54688.0,54677.0,0.10333]
[1725797347577,0.02753459,54684.0,54677.0,0.09033]
[1725797347779,0.000815,54684.0,54677.0,0.09033]
[1725797347991,0.000815,54684.0,54677.0,0.09833]
[1725797348211,0.000815,54684.0,54677.0,0.09033]
[1725797348629,0.000815,54684.0,54677.0,0.09633]
[1725797349390,0.0657,54683.0,54677.0,0.10533]
[1725797349593,0.000815,54678.0,54677.0,0.10533]
[1725797349798,0.000815,54678.0,54677.0,0.09633]
[1725797350246,0.000815,54678.0,54677.0,0.10233]
[1725797350712,0.000815,54678.0,54677.0,0.09033]
[1725797351108,0.000815,54678.0,54677.0,0.09933]
[1725797351332,0.000815,54678.0,54677.0,0.09633]
[1725797351846,0.000815,54678.0,54677.0,0.10233]
[1725797352459,0.000815,54678.0,54677.0,0.09633]
[1725797352883,0.000815,54678.0,54677.0,0.10333]
[1725797355509,0.0274488,54678.0,54677.0,0.10333]
[1725797359609,0.04659546,54678.0,54677.0,0.10333]
[1725797362385,0.19999546,54678.0,54677.0,0.01463]
[1725797362609,0.38234016,54678.0,54677.0,0.01463]
[1725797362840,0.36588183,54678.0,54677.0,0.01463]
[1725797363036,0.47567476,54678.0,54677.0,0.01463]
[1725797363261,0.44815762,54678.0,54677.0,0.01463]
[1725797363673,0.44815762,54678.0,54677.0,0.00763]
[1725797363895,0.44915762,54678.0,54677.0,0.00763]
[1725797364102,0.44915762,54678.0,54677.0,0.00163]
[1725797364306,0.36688183,54678.0,54677.0,0.00163]
[1725797364511,0.47667476,54678.0,54677.0,0.00163]
[1725797364682,0.36688183,54678.0,54677.0,0.00163]
[1725797365049,0.50412299,54678.0,54677.0,0.00163]
[1725797365289,0.47649335,54678.0,54677.0,0.00163]
[1725797365498,0.50312299,54678.0,54677.0,0.00163]
[1725797365699,0.50612299,54678.0,54677.0,0.00263]
[1725797365913,0.36888183,54678.0,54677.0,0.00163]
[1725797366122,0.47844943,54678.0,54677.0,0.00163]
[1725797366344,0.47544943,54678.0,54677.0,0.00163]
[1725797366566,0.47944943,54678.0,54677.0,0.00263]
[1725797367218,0.37688183,54678.0,54677.0,0.00363]
[1725797368270,0.49695001,54678.0,54674.0,0.00163]
[1725797368507,0.0715,54675.0,54674.0,0.00163]
[1725797368743,0.22625107,54675.0,54674.0,0.00163]
[1725797369239,0.1715,54675.0,54674.0,0.00163]
[1725797369663,0.1715,54675.0,54674.0,0.00263]
[1725797369874,0.20017797,54675.0,54674.0,0.00263]
[1725797370089,0.26539134,54675.0,54674.0,0.00163]
[1725797370287,0.34749134,54675.0,54674.0,0.00163]
[1725797370520,0.34749134,54675.0,54674.0,0.00263]
[1725797370721,0.34749134,54675.0,54674.0,0.00163]
[1725797371128,0.35149134,54675.0,54674.0,0.00163]
[1725797371757,0.32281337,54675.0,54674.0,0.00163]
[1725797373273,0.0715,54674.0,54673.0,0.00163]
[1725797373491,0.22212881,54674.0,54673.0,0.00163]
[1725797373909,0.1715,54674.0,54673.0,0.00163]
[1725797374558,0.1,54674.0,54673.0,0.00163]
[1725797374763,0.103,54674.0,54673.0,0.00163]
[1725797375704,0.105,54674.0,54673.0,0.00163]
[1725797376146,0.005,54674.0,54673.0,0.00163]
[1725797390761,0.02414666,54674.0,54673.0,0.00163]
[1725797396237,0.02414666,54674.0,54673.0,0.06983]
[1725797397957,0.02738546,54679.0,54673.0,0.06983]
[1725797397958,0.1,54679.0,54673.0,0.06983]
[1725797398221,0.05921122,54683.0,54673.0,0.06983]
[1725797398417,0.02867767,54680.0,54673.0,0.06983]
[1725797399388,0.006,54679.0,54673.0,0.07083]
[1725797399821,0.02867767,54680.0,54673.0,0.06983]
[1725797400519,0.02867767,54680.0,54673.0,0.07083]
[1725797400721,0.02867767,54680.0,54675.0,0.0669]
[1725797400950,0.02867767,54680.0,54676.0,0.0883]
[1725797401215,0.02867767,54680.0,54677.0,0.0669]
[1725797401216,0.03367767,54680.0,54677.0,0.0669]
[1725797401419,0.04267767,54680.0,54677.0,0.0669]
[1725797401625,0.03367767,54680.0,54677.0,0.0669]
[1725797401828,0.02867767,54680.0,54677.0,0.0669]
[1725797401943,0.03867767,54680.0,54677.0,0.0669]
[1725797402623,0.03567767,54680.0,54677.0,0.0669]
[1725797402829,0.03867767,54680.0,54677.0,0.0679]
[1725797403189,0.03167767,54680.0,54677.0,0.0679]
[1725797403616,0.03967767,54680.0,54677.0,0.0689]
[1725797405367,0.09444883,54680.0,54677.0,0.0689]
[1725797405578,0.03967767,54680.0,54677.0,0.0689]
[1725797406225,0.09444883,54680.0,54677.0,0.0689]
[1725797406442,0.09444883,54680.0,54679.0,0.0669]
[1725797407431,0.03167767,54680.0,54679.0,0.0669]
[1725797407637,0.13167767,54680.0,54679.0,0.0669]
[1725797407842,0.24921999,54680.0,54679.0,0.0679]
[1725797408043,0.14621999,54680.0,54679.0,0.0679]
[1725797408253,0.27760558,54680.0,54679.0,0.0689]
[1725797409366,0.27842058,54680.0,54679.0,0.0689]
[1725797412214,0.14149267,54680.0,54679.0,0.0689]
[1725797413722,0.25118454,54680.0,54679.0,0.0689]
[1725797414357,0.25118023,54680.0,54679.0,0.0689]
[1725797417312,0.14149267,54680.0,54679.0,0.0689]
[1725797418903,0.22372112,54680.0,54679.0,0.0689]
[1725797419553,0.19631123,54680.0,54679.0,0.0689]
[1725797420002,0.14149267,54680.0,54679.0,0.1528]
[1725797420211,0.04149267,54680.0,54679.0,0.1528]
[1725797421083,0.03349267,54680.0,54679.0,0.1518]
[1725797421565,0.02949267,54680.0,54679.0,0.1518]
[1725797421786,0.03349267,54680.0,54679.0,0.1528]
[1725797422247,0.02949267,54680.0,54679.0,0.1518]
[1725797422689,0.02949267,54680.0,54679.0,0.1528]
[1725797422899,0.02949267,54680.0,54679.0,0.1518]
[1725797423103,0.02949267,54680.0,54679.0,0.1528]
[1725797426715,0.000815,54680.0,54679.0,0.1528]
[1725797431343,0.02948812,54680.0,54679.0,0.1528]
[1725797433787,0.02948812,54680.0,54679.0,0.15443]
[1725797436784,0.000815,54680.0,54679.0,0.15443]
[1725797439864,0.02948783,54680.0,54679.0,0.15443]
[1725797440323,0.000815,54680.0,54679.0,0.15443]
[1725797443169,0.02948781,54680.0,54679.0,0.15443]
[1725797443628,0.02921116,54680.0,54679.0,0.15443]
[1725797446808,0.00053835,54680.0,54679.0,0.15443]
[1725797450539,0.00053835,54680.0,54679.0,0.15343]
[1725797450780,0.00053835,54680.0,54679.0,0.15543]
[1725797451000,0.00053835,54680.0,54679.0,0.15443]
[1725797451205,0.00053835,54680.0,54679.0,0.15643]
[1725797451424,0.029211,54680.0,54679.0,0.15643]
[1725797456829,0.00053835,54680.0,54679.0,0.15643]
[1725797460025,0.0292115,54680.0,54679.0,0.15643]
[1725797460255,0.00053835,54680.0,54679.0,0.15643]
[1725797464158,0.02921105,54680.0,54679.0,0.15643]
[1725797465324,0.08405531,54680.0,54679.0,0.15643]
[1725797465538,0.18405531,54680.0,54679.0,0.15643]
[1725797468074,0.15538261,54680.0,54679.0,0.15643]
[1725797471414,0.18405537,54680.0,54679.0,0.15643]
[1725797472247,0.12921111,54680.0,54679.0,0.15643]
[1725797473153,0.0549261,54681.0,54679.0,0.15643]
[1725797473373,0.0549261,54682.0,54679.0,0.15643]
[1725797474040,0.0549261,54682.0,54679.0,0.15243]
[1725797474461,0.0549261,54682.0,54679.0,0.15343]
[1725797474681,0.0549261,54682.0,54679.0,0.15243]
[1725797475564,0.0549261,54682.0,54679.0,0.15343]
[1725797476673,0.0549261,54682.0,54679.0,0.15243]
[1725797477854,0.0549261,54682.0,54680.0,0.0652]
[1725797479499,0.0549261,54682.0,54680.0,0.0662]
[1725797479716,0.0549261,54682.0,54680.0,0.0672]
[1725797479940,0.0549261,54682.0,54680.0,0.06702052]
[1725797481320,0.08359948,54682.0,54680.0,0.06702052]
[1725797481533,0.18359948,54682.0,54680.0,0.06702052]
[1725797481960,0.1549261,54682.0,54680.0,0.06702052]
[1725797482172,0.1557411,54682.0,54680.0,0.06702052]
[1725797482615,0.1,54681.0,54680.0,0.06702052]
[1725797482839,0.000815,54682.0,54680.0,0.06702052]
[1725797483335,0.05574546,54682.0,54680.0,0.06702052]
[1725797483545,0.000815,54682.0,54680.0,0.06702052]
[1725797483969,0.000815,54682.0,54680.0,0.06602052]
[1725797484441,0.05574546,54682.0,54680.0,0.06602052]
[1725797484674,0.000815,54682.0,54680.0,0.06502052]
[1725797485102,0.000815,54682.0,54680.0,0.06702052]
[1725797485336,0.02948755,54682.0,54680.0,0.06502052]
[1725797485556,0.12948755,54682.0,54680.0,0.06802052]
[1725797486038,0.12948755,54682.0,54680.0,0.06602052]
[1725797486272,0.12948755,54682.0,54680.0,0.06702052]
[1725797488327,0.100815,54682.0,54680.0,0.06702052]
[1725797488545,0.1,54681.0,54680.0,0.06702052]
[1725797488761,0.000815,54682.0,54680.0,0.06702052]
[1725797489463,0.000815,54682.0,54680.0,0.06602052]
[1725797489899,0.000815,54682.0,54680.0,0.06702052]
[1725797490312,0.000815,54682.0,54680.0,0.06502052]
[1725797490782,0.000815,54682.0,54680.0,0.06602052]
[1725797491703,0.02948755,54682.0,54680.0,0.06802052]
[1725797491923,0.12948755,54682.0,54680.0,0.06802052]
[1725797492157,0.12948755,54682.0,54680.0,0.06602052]
[1725797492378,0.12948755,54682.0,54680.0,0.06702052]
[1725797495294,0.12948755,54682.0,54680.0,0.0641705]
[1725797495522,0.12948755,54682.0,54680.0,0.0631705]
[1725797496185,0.12948755,54682.0,54680.0,0.0651705]
[1725797496399,0.12948755,54682.0,54680.0,0.0641705]
[1725797496612,0.12948755,54682.0,54680.0,0.0661705]
[1725797497474,0.100815,54682.0,54680.0,0.0661705]
[1725797497694,0.000815,54682.0,54680.0,0.0661705]
[1725797498606,0.000815,54682.0,54680.0,0.0621705]
[1725797498821,0.000815,54682.0,54680.0,0.0631705]
[1725797499041,0.000815,54682.0,54680.0,0.0641705]
[1725797499250,0.000815,54682.0,54680.0,0.0631705]
[1725797499713,0.000815,54682.0,54680.0,0.0641705]
[1725797500816,0.02948758,54682.0,54680.0,0.0641705]
[1725797501084,0.12948758,54682.0,54680.0,0.0641705]
[1725797505303,0.18437351,54682.0,54680.0,0.0641705]
[1725797506413,0.15570093,54682.0,54680.0,0.0641705]
[1725797506602,0.05570093,54682.0,54680.0,0.0658005]
[1725797510144,0.05538141,54682.0,54680.0,0.0658005]
[1725797512382,0.0553889,54682.0,54680.0,0.0658005]
[1725797512595,0.00049548,54682.0,54680.0,0.0658005]
[1725797516376,0.0291682,54682.0,54680.0,0.0658005]
[1725797516609,0.10049548,54682.0,54680.0,0.0658005]
[1725797517487,0.00049548,54682.0,54680.0,0.0658005]
[1725797519182,0.10049548,54682.0,54680.0,0.0658005]
[1725797519633,0.00049548,54682.0,54680.0,0.0658005]
[1725797520056,0.02916806,54682.0,54680.0,0.0658005]
[1725797520267,0.12916806,54682.0,54680.0,0.0658005]
[1725797526774,0.10049548,54682.0,54680.0,0.0658005]
[1725797526971,0.00049548,54682.0,54680.0,0.0658005]
[1725797530192,0.02916804,54682.0,54680.0,0.0658005]
[1725797530396,0.12916804,54682.0,54680.0,0.0658005]
[1725797536793,0.10049548,54682.0,54680.0,0.0658005]
[1725797537008,0.00049548,54682.0,54680.0,0.0658005]
[1725797540137,0.02916802,54682.0,54680.0,0.0658005]
[1725797540579,0.12916802,54682.0,54680.0,0.0648005]
[1725797541019,0.18407081,54682.0,54680.0,0.0658005]
[1725797541216,0.18407081,54682.0,54680.0,0.0648005]
[1725797541504,0.18407081,54682.0,54680.0,0.0658005]
[1725797541505,0.05490279,54681.0,54680.0,0.0658005]
[1725797541722,0.05490279,54681.0,54680.0,0.0668005]
[1725797541953,0.18407081,54682.0,54680.0,0.0668005]
[1725797542183,0.18407081,54682.0,54680.0,0.0698005]
[1725797542424,0.18407081,54682.0,54680.0,0.0638005]
[1725797542626,0.18407081,54682.0,54680.0,0.0678005]
[1725797543044,0.18407081,54682.0,54680.0,0.0638005]
[1725797543891,0.18407081,54682.0,54680.0,0.0678005]
[1725797544347,0.18407081,54682.0,54680.0,0.0638005]
[1725797544571,0.18407081,54682.0,54680.0,0.0668005]
[1725797544827,0.18407081,54682.0,54680.0,0.0688005]
[1725797545052,0.18407081,54682.0,54680.0,0.0708005]
[1725797546802,0.15539827,54682.0,54680.0,0.0708005]
[1725797547022,0.05539827,54682.0,54680.0,0.0708005]
[1725797549047,0.05539827,54682.0,54681.0,0.1425]
[1725797549282,0.00049548,54682.0,54681.0,0.1425]
[1725797551785,0.00049548,54682.0,54681.0,0.1455]
[1725797552665,0.00049548,54682.0,54681.0,0.1485]
[1725797554600,0.05486384,54693.0,54682.0,0.0626]
[1725797555115,0.08181409,54693.0,54682.0,0.0626]
[1725797556173,0.08781409,54693.0,54682.0,0.0636]
[1725797556814,0.08881409,54693.0,54684.0,0.0626]
[1725797557298,0.03395025,54693.0,54684.0,0.0626]
[1725797557944,0.03295025,54693.0,54684.0,0.0626]
[1725797558197,0.03395025,54693.0,54684.0,0.0636]
[1725797558419,0.02795025,54693.0,54684.0,0.0636]
[1725797559136,0.03395025,54693.0,54684.0,0.0646]
[1725797561335,0.02866934,54691.0,54684.0,0.0646]
[1725797561781,0.02866934,54691.0,54686.0,0.06]
[1725797562695,0.03466934,54691.0,54686.0,0.06]
[1725797562921,0.02866934,54691.0,54686.0,0.06]
[1725797563366,0.02866934,54691.0,54686.0,0.061]
[1725797563367,0.03566934,54691.0,54686.0,0.061]
[1725797563811,0.03466934,54691.0,54686.0,0.061]
[1725797564235,0.03566934,54691.0,54686.0,0.061]